bitfinex/quotes_ETHUSD_20250726
["timestamp","ask_amount","ask_price","bid_price","bid_amount"]
[1753504764686,0.002,3751.5,3751.4,2.472]
[1753504765017,0.4945,3751.5,3751.4,2.472]
[1753504765415,0.002,3751.5,3751.4,2.472]
[1753504767916,0.002,3751.5,3751.4,6.43384819]
[1753504768110,0.002,3751.5,3751.4,6.54079148]
[1753504768293,0.002,3751.5,3751.4,3.87512]
[1753504768893,0.002,3751.5,3751.4,2.472]
[1753504769094,0.002,3751.5,3751.3,0.1336]
[1753504769313,0.002,3751.5,3751.4,2.471]
[1753504769999,0.002,3751.5,3751.4,2.9676]
[1753504770501,0.002,3751.5,3751.4,3.4303]
[1753504770697,0.002,3751.5,3751.4,6.74559204]
[1753504770886,0.002,3751.5,3751.4,6.71893533]
[1753504777928,0.002,3751.5,3751.4,7.54313533]
[1753504787274,0.002,3751.5,3751.4,7.08043533]
[1753504787469,0.002,3751.5,3751.4,6.57483533]
[1753504789505,0.002,3751.5,3751.4,7.04323533]
[1753504789989,0.002,3751.5,3751.4,6.57483533]
[1753504790208,0.9235,3751.5,3751.4,5.12567148]
[1753504790411,0.9235,3751.5,3751.4,2.66567148]
[1753504790576,0.9235,3751.5,3751.4,5.12567148]
[1753504791102,0.002,3751.5,3751.4,5.12567148]
[1753504792602,0.002,3751.5,3751.3,0.1336]
[1753504792603,0.9235,3751.5,3751.3,0.1336]
[1753504792893,0.9215,3751.4,3751.2,2.66580012]
[1753504793093,0.002,3751.5,3751.3,2.459]
[1753504793685,0.9215,3751.4,3751.3,2.459]
[1753504793886,0.002,3751.5,3751.3,2.459]
[1753504794281,0.002,3751.5,3751.4,0.1336]
[1753504794739,0.472,3751.5,3751.4,0.1336]
[1753504795588,0.472,3751.5,3751.4,2.79927148]
[1753504795818,0.472,3751.5,3751.4,0.1336]
[1753504796123,0.9235,3751.5,3751.4,0.1336]
[1753504797527,0.9235,3751.5,3751.4,0.10937459]
[1753504797816,0.002,3751.5,3751.4,2.77504607]
[1753504798830,0.002,3751.5,3751.4,0.10937459]
[1753504799121,0.472,3751.5,3751.4,0.10937459]
[1753504800025,0.9235,3751.5,3751.4,2.456]
[1753504804213,0.9235,3751.5,3751.3,0.1346]
[1753504804434,0.002,3751.5,3751.3,0.001]
[1753504804652,0.002,3751.5,3751.4,2.453]
[1753504805049,0.9235,3751.5,3751.4,2.453]
[1753504809541,0.472,3751.5,3751.4,2.453]
[1753504809723,0.472,3751.5,3751.4,5.11867148]
[1753504810049,0.002,3751.5,3751.4,5.11867148]
[1753504810956,0.002,3751.5,3751.4,2.453]
[1753504813670,0.472,3751.5,3751.4,2.453]
[1753504815570,0.472,3751.5,3751.4,5.11867148]
[1753504816471,0.472,3751.5,3751.4,2.453]
[1753504816678,0.002,3751.5,3751.4,5.11867148]
[1753504816970,0.002,3751.5,3751.4,2.453]
[1753504817666,0.002,3751.5,3751.4,5.11867148]
[1753504818172,0.002,3751.5,3751.4,2.453]
[1753504818376,0.5016,3751.5,3751.4,2.453]
[1753504819156,0.9766,3751.5,3751.4,2.453]
[1753504821461,0.5016,3751.5,3751.4,2.453]
[1753504821666,0.9766,3751.5,3751.4,2.447]
[1753504823709,0.9766,3751.5,3751.3,0.001]
[1753504823710,0.5016,3751.5,3751.3,0.001]
[1753504823869,4.2191941,3751.5,3751.3,0.001]
[1753504824062,7.01839452,3751.5,3751.4,2.446]
[1753504824479,8.77269452,3751.5,3751.4,2.446]
[1753504824687,8.77269452,3751.5,3751.4,2.447]
[1753504825291,8.77269452,3751.5,3751.4,2.446]
[1753504826714,8.77269452,3751.5,3751.4,0.001]
[1753504827235,11.77269452,3751.5,3751.4,0.001]
[1753504832433,12.32269452,3751.5,3751.4,0.001]
[1753504832605,11.77269452,3751.5,3751.4,0.001]
[1753504832790,14.21669452,3751.5,3751.4,0.001]
[1753504835245,14.76669452,3751.5,3751.4,0.001]
[1753504836438,14.76669452,3751.5,3751.4,1e-08]
[1753504836651,21.82669452,3751.5,3751.4,1e-08]
[1753504837638,7.03377148,3751.4,3751.3,1e-08]
[1753504837842,8.00837148,3751.4,3751.3,1e-08]
[1753504838745,7.03412682,3750.9,3750.8,1e-08]
[1753504838919,13.82692092,3750.9,3750.8,1e-08]
[1753504839262,21.86152092,3750.9,3750.8,1e-08]
[1753504839451,6.48419789,3750.8,3750.7,1e-08]
[1753504839748,6.21624006,3750.6,3750.0,0.001]
[1753504839954,9.47734006,3750.6,3750.0,0.001]
[1753504840151,10.45194006,3750.6,3750.0,0.001]
[1753504841756,2.66673777,3749.9,3749.8,0.0001]
[1753504842262,2.80033777,3749.9,3749.8,0.0001]
[1753504843037,6.77493777,3749.9,3749.8,0.0001]
[1753504853609,8.24033777,3749.9,3749.8,0.9195]
[1753504853790,5.5736,3749.9,3749.8,0.9195]
[1753504853954,3.1336,3749.9,3749.8,0.9195]
[1753504854284,3.1336,3749.9,3749.8,1.7432]
[1753504854588,0.1336,3749.9,3749.8,1.7432]
[1753504855051,2.439,3750.3,3749.8,1.7432]
[1753504855052,2.44,3750.4,3749.8,4.58442889]
[1753504855252,0.1336,3750.0,3749.9,0.9194]
[1753504858174,0.1336,3750.0,3749.8,0.8238]
[1753504858352,0.1336,3750.0,3749.8,0.0001]
[1753504858877,0.1336,3750.0,3749.8,0.4632]
[1753504859888,2.80026979,3750.0,3749.8,0.4632]
[1753504860690,0.1336,3750.0,3749.9,0.4631]
[1753504861590,0.1336,3750.0,3749.9,0.9194]
[1753504863167,2.80026666,3750.0,3749.9,0.4631]
[1753504863568,0.1336,3750.0,3749.9,0.4631]
[1753504864397,0.1336,3750.0,3749.9,0.9194]
[1753504864977,0.1336,3750.0,3749.9,1.7431]
[1753504867207,0.1336,3750.0,3749.9,0.9194]
[1753504868109,0.1336,3750.0,3749.9,0.4631]
[1753504868493,0.1356,3750.0,3749.9,0.4631]
[1753504868695,0.1356,3750.0,3749.8,0.0001]
[1753504868902,0.1356,3750.0,3749.9,0.4631]
[1753504869417,0.6231,3750.0,3749.8,0.0001]
[1753504869715,0.4875,3749.9,3749.8,0.0001]
[1753504870300,3.15423777,3749.9,3749.8,0.0001]
[1753504871421,2.66673777,3749.9,3749.8,0.0001]
[1753504872321,3.26828454,3750.0,3749.8,0.0001]
[1753504872527,2.66673777,3749.9,3749.8,0.0001]
[1753504872690,3.62023777,3749.9,3749.8,0.0001]
[1753504873511,3.38541344,3749.9,3749.8,0.0001]
[1753504873821,3.87291344,3749.9,3749.8,0.0001]
[1753504874011,3.15423777,3749.9,3749.8,0.0001]
[1753504874207,5.66673777,3749.9,3749.8,0.0001]
[1753504874411,6.62023777,3749.9,3749.8,0.0001]
[1753504874809,7.97473777,3749.9,3749.8,0.0001]
[1753504876504,5.66673777,3749.9,3749.8,0.4632]
[1753504876826,5.66673777,3749.9,3749.8,0.9195]
[1753504878691,3.0,3749.9,3749.8,0.9195]
[1753504879092,0.1356,3750.0,3749.8,1.7445]
[1753504879399,0.1356,3750.0,3749.9,0.9428]
[1753504883221,0.1356,3750.0,3749.9,0.4726]
[1753504883436,2.80226666,3750.0,3749.8,0.0001]
[1753504883722,0.1356,3750.0,3749.8,0.4727]
[1753504884105,0.1356,3750.0,3749.9,0.4726]
[1753504885497,0.1356,3750.0,3749.9,0.9428]
[1753504885696,2.80226666,3750.0,3749.9,0.4726]
[1753504886728,2.80226666,3750.0,3749.8,0.0001]
[1753504886923,2.66673777,3749.9,3749.8,0.0001]
[1753504887319,4.16772574,3749.9,3749.8,0.0001]
[1753504887532,7.16772574,3749.9,3749.8,0.0001]
[1753504888032,6.25902574,3749.9,3749.8,0.0001]
[1753504889332,0.1356,3750.0,3749.8,1.7386]
[1753504889511,0.1356,3750.0,3749.8,0.7958]
[1753504889863,0.1356,3750.0,3749.9,0.9428]
[1753504892832,0.1356,3750.0,3749.9,3.60953777]
[1753504893228,0.1356,3750.0,3749.9,4.43443777]
[1753504893229,0.002,3750.0,3749.9,4.43443777]
[1753504893528,0.002,3750.0,3749.9,5.5214766]
[1753504906543,0.002,3750.0,3749.9,7.9534766]
[1753504907316,0.002,3750.0,3749.9,4.5786766]
[1753504907519,0.002,3750.0,3749.9,7.4832766]
[1753504907944,0.002,3750.0,3749.9,7.9283766]
[1753504913239,0.002,3750.0,3749.9,4.5786766]
[1753504913446,0.002,3750.0,3749.9,6.05723777]
[1753504915232,0.002,3750.0,3749.9,6.55713777]
[1753504915771,0.002,3750.0,3749.9,7.00223777]
[1753504916831,0.002,3750.0,3749.9,6.55713777]
[1753504917479,0.002,3750.0,3749.9,6.05723777]
[1753504917662,0.002,3750.0,3749.9,7.02425922]
[1753504917865,0.002,3750.0,3749.9,7.96925922]
[1753504921434,0.002,3750.0,3749.9,8.17363061]
[1753504921937,0.002,3750.8,3749.9,8.17363061]
[1753504921938,0.002,3750.8,3750.7,3.47386898]
[1753504922139,0.002,3750.8,3750.7,5.90586898]
[1753504922331,0.002,3750.8,3750.7,7.57505588]
[1753504924773,0.002,3751.4,3751.3,2.66574254]
[1753504925014,0.002,3751.4,3751.3,8.91244254]
[1753504925143,0.002,3751.4,3751.3,9.85744254]
[1753504925341,0.002,3751.4,3751.3,11.5314897]
[1753504928876,0.002,3751.4,3751.3,9.0924897]
[1753504929082,0.002,3751.4,3751.3,11.5294897]
[1753504933903,0.002,3751.4,3751.3,9.0924897]
[1753504934066,0.002,3751.4,3751.3,11.5284897]
[1753504934577,0.4649,3751.4,3751.3,10.5834897]
[1753504934772,0.002,3751.4,3751.3,8.47879015]
[1753504934960,0.9095,3751.4,3751.3,10.91379015]
[1753504935896,0.4649,3751.4,3751.3,10.91379015]
[1753504936082,0.002,3751.4,3751.3,10.91379015]
[1753504939703,0.002,3751.4,3751.3,11.39449015]
[1753504939999,0.002,3751.4,3751.3,11.85059015]
[1753504948571,0.002,3751.4,3751.3,11.39449015]
[1753504949482,0.002,3751.4,3751.3,11.39049015]
[1753504949912,0.002,3751.4,3751.3,10.90979015]
[1753504952103,0.9379,3751.4,3751.3,10.90979015]
[1753504952300,0.002,3751.4,3751.3,10.90979015]
[1753504958494,0.002,3751.4,3751.3,11.39049015]
[1753504960125,0.002,3751.4,3751.3,8.47879015]
[1753504960306,0.002,3751.4,3751.3,10.90979015]
[1753504960505,0.002,3751.4,3751.3,7.67109015]
[1753504960735,0.9379,3751.4,3751.3,8.42804299]
[1753504961187,0.9379,3751.4,3751.3,2.99704299]
[1753504961386,0.9379,3751.4,3751.3,5.42804299]
[1753504965603,0.482,3751.4,3751.3,5.42804299]
[1753504965929,0.9379,3751.4,3751.3,5.42804299]
[1753504969924,0.482,3751.4,3751.3,5.42804299]
[1753504970133,0.002,3751.4,3751.3,5.42804299]
[1753504970338,0.002,3751.4,3751.3,6.23743079]
[1753504971319,0.002,3751.4,3751.3,6.70793079]
[1753504971767,0.002,3751.4,3751.3,7.16663079]
[1753504982685,0.002,3751.4,3751.3,6.70793079]
[1753504983098,0.4652,3751.4,3751.3,3.80643079]
[1753504983308,0.9262,3751.4,3751.3,6.23643079]
[1753504983608,0.4652,3751.4,3751.3,6.23643079]
[1753504983802,0.002,3751.4,3751.3,6.23643079]
[1753504989492,0.002,3751.4,3751.3,6.70693079]
[1753504992291,0.002,3751.4,3751.3,6.23643079]
[1753504992493,0.002,3751.4,3751.3,6.03873034]
[1753504995383,0.002,3751.4,3751.3,6.50923034]
[1753504996403,0.002,3751.4,3751.3,4.07923034]
[1753504996596,0.002,3751.4,3751.3,6.50923034]
[1753504997106,0.002,3751.4,3751.3,6.70692506]
[1753504997485,0.002,3751.4,3751.3,6.23642506]
[1753504998702,0.4765,3751.4,3751.3,6.23642506]
[1753504999504,0.002,3751.4,3751.3,6.23642506]
[1753505002098,0.002,3751.4,3751.3,6.73372506]
[1753505004205,0.002,3751.4,3751.3,6.23642506]
[1753505006620,0.002,3751.4,3751.3,3.80642506]
[1753505006917,0.002,3751.4,3751.3,6.23642506]
[1753505007805,0.002,3751.4,3751.3,6.73372506]
[1753505008932,0.002,3751.5,3751.4,2.66567148]
[1753505009140,0.002,3751.5,3751.4,7.6396542]
[1753505009347,0.002,3751.5,3751.4,7.61299749]
[1753505010939,1e-08,3751.5,3751.4,11.82933633]
[1753505022022,1e-08,3751.5,3751.4,11.36563633]
[1753505023820,1e-08,3751.5,3751.4,10.86833633]
[1753505024643,0.47450001,3751.5,3751.4,10.86833633]
[1753505024845,1e-08,3751.5,3751.4,10.86833633]
[1753505026918,1e-08,3751.5,3751.4,13.29733633]
[1753505029559,1e-08,3751.5,3751.4,10.86833633]
[1753505029758,1e-08,3751.5,3751.4,9.08099749]
[1753505030757,1e-08,3751.5,3751.4,12.05774381]
[1753505032658,1e-08,3751.5,3751.4,9.62874381]
[1753505032846,1e-08,3751.5,3751.4,6.65199749]
[1753505033047,0.48850001,3751.5,3751.4,9.08099749]
[1753505033865,1e-08,3751.5,3751.4,9.08099749]
[1753505036357,1e-08,3751.5,3751.4,9.54309749]
[1753505036750,1e-08,3751.5,3751.4,9.08099749]
[1753505038233,1e-08,3751.5,3751.4,9.07999749]
[1753505038748,0.48850001,3751.5,3751.4,9.07999749]
[1753505038970,0.93650001,3751.5,3751.4,9.07999749]
[1753505040066,0.48850001,3751.5,3751.4,9.07999749]
[1753505040368,1e-08,3751.5,3751.4,9.07999749]
[1753505040837,1e-08,3751.5,3751.4,9.97519749]
[1753505041478,1e-08,3751.5,3751.4,9.54209749]
[1753505041867,1e-08,3751.5,3751.4,10.52519749]
[1753505042171,1e-08,3751.5,3751.4,11.28719749]
[1753505043986,1e-08,3751.5,3751.4,11.28819749]
[1753505048161,1e-08,3751.5,3751.4,10.85509749]
[1753505048472,1e-08,3751.5,3751.4,11.28819749]
[1753505058480,1e-08,3751.5,3751.4,10.85639749]
[1753505058788,1e-08,3751.5,3751.4,11.31899749]
[1753505066394,0.4749,3752.0,3751.9,2.66531623]
[1753505066583,0.002,3752.2,3752.0,3.0]
[1753505066769,0.002,3752.2,3752.1,2.5606]
[1753505067085,0.002,3752.2,3752.1,5.22577416]
[1753505067675,0.4769,3752.2,3752.1,5.22577416]
[1753505068469,0.9472,3752.2,3752.1,5.22577416]
[1753505070297,0.9472,3752.2,3752.1,6.63921099]
[1753505073102,0.4769,3752.2,3752.1,6.63921099]
[1753505079404,0.002,3752.2,3752.1,6.63921099]
[1753505079585,0.002,3752.2,3752.1,7.10261099]
[1753505080613,0.002,3752.2,3752.1,6.63921099]
[1753505080930,0.002,3752.2,3752.1,7.10261099]
[1753505091419,1e-08,3752.2,3752.1,7.10261099]
[1753505091718,2.66348314,3754.5,3752.9,2.66460603]
[1753505091884,0.3823,3753.9,3752.9,2.66460603]
[1753505092080,0.9256,3753.0,3752.9,5.22420603]
[1753505093207,0.9256,3753.0,3752.9,5.77495235]
[1753505093208,0.4386,3753.0,3752.9,5.77495235]
[1753505093410,0.4386,3753.0,3752.9,8.20095235]
[1753505093606,0.002,3753.0,3752.9,8.20095235]
[1753505093788,0.002,3753.0,3752.9,10.63481189]
[1753505094010,0.4366,3753.6,3752.9,10.63481189]
[1753505094011,0.4366,3753.6,3753.5,2.66418009]
[1753505094194,0.4366,3753.6,3753.5,5.22378009]
[1753505094624,0.9236,3753.6,3753.5,5.09018009]
[1753505094931,1.737,3753.6,3753.5,5.09018009]
[1753505095095,1.737,3753.6,3753.5,2.66418009]
[1753505095297,1.737,3753.6,3753.5,5.09018009]
[1753505097731,0.8134,3753.6,3753.5,5.09018009]
[1753505097895,0.7134,3753.6,3753.5,4.9913437]
[1753505099804,1.15,3753.6,3753.5,4.9913437]
[1753505100021,0.7134,3753.6,3753.5,2.5653437]
[1753505100226,1.11225,3753.6,3753.5,5.08918009]
[1753505100410,1.11225,3753.6,3753.5,2.66418009]
[1753505100602,1.11225,3753.6,3753.5,5.08918009]
[1753505101028,0.7676,3753.5,3753.4,2.79784195]
[1753505101195,1.6912,3753.5,3753.4,5.22284195]
[1753505102125,1.879185,3753.5,3753.4,0.1336]
[1753505102331,1.879185,3753.5,3753.4,2.425]
[1753505103031,0.7676,3753.4,3753.0,2.66447662]
[1753505103240,1.9113435,3753.4,3753.1,2.66446109]
[1753505103402,0.7676,3753.3,3753.2,2.425]
[1753505103603,1.6912,3753.3,3753.2,2.425]
[1753505105244,1.2042,3753.3,3753.2,2.425]
[1753505105401,1.723,3753.3,3753.2,2.425]
[1753505105604,1.95497785,3753.3,3753.2,2.425]
[1753505106547,1.95497785,3753.3,3753.0,0.1336]
[1753505106749,1.95497785,3753.3,3753.1,2.425]
[1753505106750,1.8566,3753.2,3753.1,2.425]
[1753505107405,1.0572,3753.2,3752.7,2.66473498]
[1753505107605,1.0572,3753.2,3752.8,2.425]
[1753505107606,0.7994,3753.1,3752.8,2.425]
[1753505107817,0.9236,3753.0,3752.8,2.425]
[1753505108132,0.9236,3752.9,3752.8,2.425]
[1753505108902,0.4366,3752.9,3752.8,2.425]
[1753505109116,0.9236,3752.9,3752.8,2.425]
[1753505109498,1.723,3752.9,3752.8,2.425]
[1753505110035,1.723,3752.9,3752.6,0.1336]
[1753505110236,1.723,3752.9,3752.3,2.79857419]
[1753505110237,0.1723,3752.8,3752.3,2.79857419]
[1753505110538,0.4366,3752.7,3752.4,2.425]
[1753505110746,0.4366,3752.6,3752.4,5.544153]
[1753505111105,0.4366,3752.6,3752.5,2.425]
[1753505111341,0.933,3752.9,3752.3,0.1336]
[1753505111567,0.4366,3752.6,3752.5,2.425]
[1753505112408,1.2572,3752.6,3752.5,2.425]
[1753505113826,1.2572,3752.6,3752.3,2.79859919]
[1753505114044,0.4366,3752.5,3752.4,2.425]
[1753505114247,0.4366,3752.5,3752.4,5.08996109]
[1753505115040,0.8206,3752.6,3752.4,5.08996109]
[1753505115243,1.2572,3752.6,3752.4,5.08996109]
[1753505115429,1.2572,3752.6,3752.4,5.54416109]
[1753505116046,1.2572,3752.6,3752.5,2.425]
[1753505119562,1.2572,3752.6,3752.5,5.08989007]
[1753505121162,0.8206,3752.6,3752.5,5.08989007]
[1753505121962,0.8206,3752.6,3752.5,5.56059007]
[1753505127889,0.8206,3752.6,3752.5,5.08989007]
[1753505128349,0.8206,3752.6,3752.5,5.56059007]
[1753505129165,1.2622,3752.8,3752.7,2.66474804]
[1753505129360,1.2622,3752.8,3752.7,5.08874804]
[1753505129980,1.2622,3752.8,3752.7,2.424]
[1753505130470,1.2622,3752.8,3752.7,5.08874804]
[1753505131480,0.7961,3752.8,3752.7,5.55944804]
[1753505134588,0.1336,3752.9,3752.8,2.66467704]
[1753505134774,0.1336,3752.9,3752.8,3.13537704]
[1753505135463,0.1336,3753.0,3752.9,2.66455443]
[1753505135668,0.1336,3753.0,3752.9,5.08855443]
[1753505135877,0.1336,3753.0,3752.9,2.424]
[1753505136590,0.5997,3753.0,3752.9,2.424]
[1753505137889,0.5997,3753.0,3752.9,5.08860603]
[1753505138359,0.1336,3753.0,3752.9,5.55930603]
[1753505139588,0.5997,3753.0,3752.9,2.424]
[1753505142425,0.1336,3753.0,3752.9,2.424]
[1753505142934,0.5997,3753.0,3752.9,2.424]
[1753505144118,0.1336,3753.0,3752.9,2.424]
[1753505144521,0.1336,3753.0,3752.9,2.8947]
[1753505147088,0.1336,3753.0,3752.9,0.4707]
[1753505147506,0.1336,3753.0,3752.9,2.8947]
[1753505148617,0.1336,3753.0,3752.9,0.4707]
[1753505148821,0.32208,3753.0,3752.9,2.424]
[1753505149218,0.78358,3753.0,3752.9,2.424]
[1753505149632,0.32208,3753.0,3752.9,2.897]
[1753505149924,0.1336,3753.0,3752.9,2.897]
[1753505152130,0.1336,3753.0,3752.9,5.08860603]
[1753505152326,0.002,3753.3,3753.0,2.66453316]
[1753505152327,0.1356,3753.3,3753.0,2.66453316]
[1753505152526,0.1356,3753.3,3753.1,2.423]
[1753505152902,0.1356,3753.3,3753.2,0.473]
[1753505160231,0.1356,3753.3,3753.2,0.9137]
[1753505161223,0.1356,3753.3,3753.2,3.57809305]
[1753505161505,0.002,3753.3,3753.2,4.73735208]
[1753505163441,0.002,3753.3,3753.2,4.87095208]
[1753505167056,0.002,3753.3,3753.2,2.5566]
[1753505167349,0.002,3753.3,3753.2,5.69399305]
[1753505167640,0.002,3753.3,3753.2,2.79799305]
[1753505167845,0.002,3753.3,3753.2,5.69399305]
[1753505168343,0.002,3753.3,3753.2,0.1336]
[1753505168545,0.5971,3753.3,3753.2,2.423]
[1753505168913,0.5971,3753.3,3753.2,3.3367]
[1753505168914,0.1356,3753.3,3753.2,3.3367]
[1753505169114,0.002,3753.3,3753.2,6.55098305]
[1753505172116,0.002,3753.3,3753.2,6.54998305]
[1753505172440,0.002,3753.3,3753.2,5.69299305]
[1753505173031,0.002,3753.3,3753.2,6.13369305]
[1753505174033,0.002,3753.3,3753.2,3.71169305]
[1753505174346,0.002,3753.3,3753.2,5.69299305]
[1753505175931,0.002,3753.3,3753.2,3.27099305]
[1753505176130,0.002,3753.3,3753.2,5.69299305]
[1753505178752,0.434,3753.3,3753.2,5.21999305]
[1753505178948,0.002,3753.3,3753.2,5.21999305]
[1753505179155,0.002,3753.3,3753.2,7.0249658]
[1753505184736,0.002,3753.3,3753.2,6.5638658]
[1753505185225,0.002,3753.3,3753.2,10.77440615]
[1753505186242,1e-08,3753.3,3753.2,11.32440615]
[1753505186633,1e-08,3753.3,3753.2,14.32440615]
[1753505187162,1e-08,3753.3,3753.2,7.9155658]
[1753505187366,1e-08,3753.3,3753.2,14.32440615]
[1753505187860,0.2495,3753.9,3753.8,7.01276717]
[1753505188061,0.2495,3753.9,3753.8,13.51099031]
[1753505188264,0.2495,3753.9,3753.8,14.44479031]
[1753505188461,0.2495,3753.9,3753.8,11.46904996]
[1753505188631,0.1328,3755.4,3754.9,2.66312599]
[1753505188838,0.432,3755.3,3755.0,2.8947]
[1753505189037,0.1328,3755.4,3755.1,2.8937]
[1753505189243,0.432,3755.5,3755.1,5.08404361]
[1753505189569,0.432,3755.4,3755.1,3.0265]
[1753505189769,0.432,3755.3,3755.1,2.5538]
[1753505190332,0.1328,3755.6,3755.2,2.421]
[1753505190580,1.16390617,3755.5,3755.2,2.421]
[1753505190792,0.67690617,3755.5,3755.2,2.421]
[1753505191073,0.432,3755.5,3755.2,2.421]
[1753505191367,0.1328,3755.6,3755.3,0.4727]
[1753505191570,0.1328,3755.6,3755.4,2.421]
[1753505191736,0.432,3755.5,3755.4,2.421]
[1753505193275,0.919,3755.5,3755.4,2.421]
[1753505194669,0.432,3755.5,3755.4,2.421]
[1753505195554,0.919,3755.5,3755.4,2.421]
[1753505196076,0.487,3755.5,3755.4,2.421]
[1753505196273,0.919,3755.5,3755.4,2.421]
[1753505196471,0.919,3755.5,3755.1,0.1328]
[1753505196777,0.432,3755.4,3755.2,2.421]
[1753505196975,0.487,3755.5,3755.2,2.421]
[1753505197138,0.432,3755.4,3755.2,2.421]
[1753505197342,0.487,3755.5,3755.2,2.421]
[1753505197574,0.432,3755.3,3755.2,2.421]
[1753505198278,0.002,3755.5,3755.2,2.8937]
[1753505198476,0.002,3755.5,3755.2,2.421]
[1753505198777,0.002,3755.5,3755.3,0.4727]
[1753505198982,0.434,3755.5,3755.2,2.8937]
[1753505199360,0.434,3755.5,3755.3,0.4727]
[1753505199560,0.002,3755.5,3755.2,5.08396372]
[1753505199774,0.002,3755.5,3755.4,0.4727]
[1753505202769,0.002,3755.5,3755.4,5.02758082]
[1753505202990,0.002,3755.5,3755.4,5.16038082]
[1753505205399,0.002,3755.5,3755.4,5.71038082]
[1753505206109,0.002,3755.5,3755.4,8.13038082]
[1753505207011,0.002,3755.5,3755.4,7.58038082]
[1753505208783,0.002,3755.5,3755.4,3.41068082]
[1753505209095,0.002,3755.5,3755.4,5.08283218]
[1753505209470,0.002,3755.5,3755.4,5.56243218]
[1753505210997,0.002,3755.5,3755.4,3.14243218]
[1753505211515,0.002,3755.5,3755.4,5.56243218]
[1753505211717,0.002,3755.5,3755.4,3.14243218]
[1753505211920,0.002,3755.5,3755.4,5.56243218]
[1753505212123,0.002,3755.5,3755.4,5.08283218]
[1753505212277,0.002,3755.5,3755.4,5.56243218]
[1753505213927,0.002,3755.5,3755.4,2.8996]
[1753505214308,0.002,3755.5,3755.4,5.56243218]
[1753505215032,0.4397,3755.5,3755.4,2.42]
[1753505215490,0.002,3755.5,3755.4,5.08283218]
[1753505216038,0.002,3755.5,3755.4,2.42]
[1753505216194,0.002,3755.5,3755.4,5.08283218]
[1753505216890,0.002,3755.5,3755.4,2.42]
[1753505217085,0.002,3755.5,3755.4,5.56243218]
[1753505217291,0.002,3755.5,3755.4,6.34029218]
[1753505219152,0.002,3755.5,3755.4,6.47309218]
[1753505220166,0.002,3755.5,3755.4,6.02049218]
[1753505220527,0.002,3755.5,3755.4,6.47309218]
[1753505221751,0.002,3755.5,3755.4,0.1328]
[1753505221752,0.4397,3755.5,3755.4,0.1328]
[1753505221925,0.4397,3755.5,3755.4,5.21463218]
[1753505222446,0.002,3755.5,3755.4,5.21463218]
[1753505223957,0.002,3755.5,3755.4,2.5518]
[1753505224281,0.002,3755.5,3755.4,5.21463218]
[1753505224842,0.002,3755.5,3755.4,2.79563218]
[1753505225046,0.002,3755.5,3755.4,5.21463218]
[1753505225352,0.002,3755.5,3755.4,2.5518]
[1753505225647,0.002,3755.5,3755.4,2.79563218]
[1753505225827,0.002,3755.5,3755.4,5.21463218]
[1753505227345,0.002,3755.5,3755.4,2.79563218]
[1753505227550,0.002,3755.5,3755.4,5.21463218]
[1753505227745,0.4397,3755.5,3755.4,2.5518]
[1753505228641,0.4397,3755.5,3755.4,5.21463218]
[1753505229949,1.6895,3755.5,3755.4,2.419]
[1753505231715,1.6895,3755.5,3755.2,0.1328]
[1753505231912,5.03870326,3755.3,3754.6,3.836]
[1753505232113,0.1328,3755.0,3754.7,2.419]
[1753505232345,0.9202,3754.9,3754.7,2.419]
[1753505232558,0.4377,3754.8,3754.6,3.836]
[1753505232739,0.4377,3754.7,3754.6,3.836]
[1753505232942,1.2666,3754.7,3754.6,3.836]
[1753505233261,1.7491,3754.7,3754.6,6.255]
[1753505233458,1.2666,3754.7,3754.6,6.255]
[1753505234120,1.2666,3754.7,3754.6,3.836]
[1753505234321,1.2666,3754.7,3754.6,6.255]
[1753505236860,1.2666,3754.7,3754.6,3.836]
[1753505237022,1.2666,3754.7,3754.6,6.255]
[1753505237023,1.7491,3754.7,3754.6,6.255]
[1753505237367,1.8819,3754.7,3754.6,6.255]
[1753505238535,4.54522862,3754.7,3754.6,6.255]
[1753505239576,1.3994,3754.7,3754.6,6.255]
[1753505239777,1.3994,3754.7,3754.6,3.836]
[1753505239981,1.3994,3754.7,3754.6,6.256]
[1753505240487,1.3994,3754.7,3754.6,3.836]
[1753505240654,0.9617,3754.7,3754.6,3.836]
[1753505240954,0.9617,3754.7,3754.6,6.256]
[1753505241952,0.1328,3754.7,3754.6,6.7158]
[1753505244690,0.1328,3754.7,3754.6,6.256]
[1753505244857,0.5986,3754.7,3754.6,6.256]
[1753505246095,0.5986,3754.7,3754.6,3.836]
[1753505246295,0.5986,3754.7,3754.6,6.256]
[1753505247380,0.1328,3754.7,3754.6,6.256]
[1753505247582,0.1328,3754.7,3754.6,6.7158]
[1753505248702,0.1328,3754.7,3754.6,4.2958]
[1753505248908,0.1328,3754.7,3754.6,6.7158]
[1753505249998,0.1328,3754.7,3754.6,6.256]
[1753505250297,0.5986,3754.7,3754.6,6.256]
[1753505252286,0.1328,3754.7,3754.6,6.256]
[1753505252482,0.1328,3754.7,3754.6,6.7158]
[1753505252798,0.1328,3754.7,3754.6,6.256]
[1753505253002,0.5986,3754.7,3754.6,6.256]
[1753505253920,0.5986,3754.7,3754.2,0.1328]
[1753505254219,0.1328,3754.5,3754.3,2.42]
[1753505254517,0.4658,3754.4,3754.3,2.42]